bitfinex/quotes_SOLUSD_20240925
["timestamp","ask_amount","ask_price","bid_price","bid_amount"]
[1727230726178,6.5587,152.47,152.4,0.3577439]
[1727230726581,6.5592,152.46,152.4,0.3577439]
[1727230728303,6.5587,152.47,152.4,0.3577439]
[1727230728692,6.5591,152.46,152.4,0.3577439]
[1727230731582,6.5596,152.45,152.4,0.3577439]
[1727230733029,6.5596,152.45,152.4,1.66984608]
[1727230733893,6.5596,152.45,152.4,0.3577439]
[1727230740413,20.0,152.48,152.4,1.66984605]
[1727230740625,6.5591,152.46,152.4,1.66984605]
[1727230740922,6.5591,152.46,152.4,0.3577439]
[1727230741519,6.5587,152.47,152.42,15.9963]
[1727230741850,6.559,152.46,152.42,15.9963]
[1727230742115,20.0,152.48,152.4,0.3577439]
[1727230742116,6.56,152.44,152.4,0.3577439]
[1727230742297,23.776884,152.47,152.4,0.3577439]
[1727230742298,6.5596,152.45,152.4,0.3577439]
[1727230742498,23.776884,152.47,152.4,0.3577439]
[1727230742699,6.5604,152.43,152.4,0.3577439]
[1727230742897,23.776884,152.47,152.4,0.3577439]
[1727230743103,6.56,152.44,152.4,0.3577439]
[1727230747126,6.5595,152.45,152.4,0.3577439]
[1727230748619,23.776884,152.47,152.4,0.3577439]
[1727230748818,6.5591,152.46,152.4,0.3577439]
[1727230750324,6.5587,152.47,152.4,10.95424539]
[1727230752828,20.0,152.48,152.4,0.3577439]
[1727230753020,6.5591,152.46,152.4,0.3577439]
[1727230754726,6.5598,152.45,152.4,0.3577439]
[1727230755612,6.5599,152.44,152.4,0.3577439]
[1727230756131,6.5603,152.43,152.4,0.3577439]
[1727230758628,6.5599,152.45,152.4,0.3577439]
[1727230760936,6.56,152.44,152.4,0.3577439]
[1727230761237,6.5605,152.43,152.4,0.3577439]
[1727230763644,6.5612,152.41,152.4,0.3577439]
[1727230773545,26.5612,152.41,152.4,0.3577439]
[1727230776731,6.5612,152.41,152.4,0.3577439]
[1727230777942,6.5608,152.42,152.4,0.3577439]
[1727230780272,6.5612,152.41,152.4,0.3577439]
[1727230785580,6.5609,152.42,152.4,0.3577439]
[1727230786470,6.5599,152.44,152.4,0.3577439]
[1727230787867,6.5596,152.45,152.4,0.3577439]
[1727230788380,6.5607,152.43,152.4,0.3577439]
[1727230790586,6.5608,152.42,152.4,0.3577439]
[1727230791077,16.3973,152.47,152.4,0.3577439]
[1727230791284,6.56,152.44,152.4,0.3577439]
[1727230793898,6.5591,152.46,152.4,0.3577439]
[1727230794068,6.5591,152.46,152.4,26.69464539]
[1727230794260,6.5595,152.45,152.41,1.3120224]
[1727230795382,43.776884,152.48,152.41,1.3120224]
[1727230795683,6.5591,152.46,152.41,1.3120224]
[1727230801378,20.0,152.47,152.41,11.90852389]
[1727230801579,26.5587,152.47,152.41,11.90852389]
[1727230801795,6.5587,152.47,152.41,11.90852389]
[1727230802219,6.5583,152.48,152.41,11.90852389]
[1727230802697,6.5587,152.47,152.41,10.59650149]
[1727230803894,23.776884,152.51,152.4,16.0981439]
[1727230804191,6.5599,152.45,152.4,16.0981439]
[1727230804889,6.5599,152.45,152.41,1.31214485]
[1727230805977,6.5599,152.45,152.4,16.0981439]
[1727230810900,43.776884,152.48,152.4,16.0981439]
[1727230811109,6.56,152.44,152.4,16.0981439]
[1727230816891,32.1919,152.49,152.4,0.3577439]
[1727230816892,6.5612,152.41,152.4,0.3577439]
[1727230818199,30.338084,152.41,152.4,0.3577439]
[1727230820318,6.5612,152.41,152.4,0.3577439]
[1727230821727,50.338084,152.41,152.4,0.3577439]
[1727230823319,56.967584,152.41,152.4,0.3577439]
[1727230824597,6.5629,152.37,152.36,0.3221303]
[1727230824800,30.339784,152.37,152.36,0.3221303]
[1727230825925,50.339784,152.37,152.36,0.3221303]
[1727230840612,20.0,152.37,152.36,0.3221303]
[1727230842540,6.5617,152.4,152.36,0.3221303]
[1727230843808,23.776884,152.39,152.36,0.3221303]
[1727230844207,6.5626,152.38,152.36,0.3221303]
[1727230844813,30.338984,152.39,152.36,0.3221303]
[1727230845412,6.5617,152.4,152.36,0.3221303]
[1727230845716,20.0,152.4,152.36,0.3221303]
[1727230845911,6.5616,152.4,152.36,0.3221303]
[1727230846340,20.0,152.4,152.36,0.3221303]
[1727230846917,6.5617,152.4,152.36,0.3221303]
[1727230847635,43.776884,152.42,152.36,0.3221303]
[1727230847804,6.5612,152.41,152.36,0.3221303]
[1727230849234,6.5618,152.4,152.36,0.3221303]
[1727230849427,6.5626,152.38,152.36,0.3221303]
[1727230850622,6.5629,152.37,152.36,0.3221303]
[1727230851823,63.496884,152.42,152.36,0.3221303]
[1727230852139,6.5626,152.38,152.36,0.3221303]
[1727230855819,70.35470317,152.42,152.36,0.3221303]
[1727230856023,30.339784,152.37,152.36,0.3221303]
[1727230856531,50.339784,152.37,152.36,0.3221303]
[1727230863439,26.5629,152.37,152.36,0.3221303]
[1727230864739,50.339784,152.37,152.36,0.3221303]
[1727230866334,6.5624,152.39,152.36,0.3221303]
[1727230866537,6.5618,152.4,152.36,0.3221303]
[1727230867034,6.5621,152.39,152.36,0.3221303]
[1727230867245,19.72,152.41,152.36,0.3221303]
[1727230867628,6.5629,152.37,152.36,0.3221303]
[1727230868234,30.339784,152.37,152.36,0.3221303]
[1727230869315,6.5624,152.39,152.36,0.3221303]
[1727230869515,22.40011346,152.43,152.36,0.3221303]
[1727230869751,20.0,152.42,152.36,0.3221303]
[1727230869920,6.5612,152.41,152.36,0.3221303]
[1727230870278,20.0,152.4,152.36,0.3221303]
[1727230870411,6.5612,152.41,152.36,0.3221303]
[1727230871941,6.5617,152.4,152.36,0.3221303]
[1727230872315,6.84171346,152.43,152.36,0.3221303]
[1727230872521,6.5612,152.41,152.36,0.3221303]
[1727230875347,6.84171346,152.43,152.36,0.3221303]
[1727230875647,6.5604,152.43,152.36,1.63462977]
[1727230876220,6.5599,152.45,152.37,10.59650149]
[1727230876528,6.56,152.44,152.36,20.3221303]
[1727230877655,6.5604,152.43,152.36,20.3221303]
[1727230878843,6.56,152.44,152.36,20.3221303]
[1727230881135,6.5604,152.43,152.36,20.3221303]
[1727230881324,6.5611,152.42,152.36,20.3221303]
[1727230881738,6.5611,152.42,152.36,21.63462883]
[1727230881929,6.5611,152.42,152.36,20.3221303]
[1727230883245,6.5611,152.42,152.36,0.3221303]
[1727230884247,6.5611,152.42,152.36,1.63452911]
[1727230884426,23.776884,152.45,152.36,1.63452911]
[1727230884627,6.5604,152.43,152.36,1.63452911]
[1727230885535,6.5604,152.43,152.36,0.3221303]
[1727230886430,6.5608,152.42,152.36,0.3221303]
[1727230887722,20.0,152.46,152.36,0.3221303]
[1727230887933,20.0,152.47,152.37,10.59650149]
[1727230888251,6.559,152.47,152.39,10.59650149]
[1727230888450,6.559,152.47,152.4,1.31203115]
[1727230888950,6.559,152.47,152.39,10.59650149]
[1727230891537,6.5594,152.46,152.38,22.0511]
[1727230891850,6.5596,152.45,152.38,22.0511]
[1727230896736,6.5596,152.45,152.39,1.31217581]
[1727230898257,6.5596,152.45,152.38,22.0511]
[1727230902356,6.5596,152.45,152.39,1.31218315]
[1727230902563,6.5592,152.46,152.39,11.90868464]
[1727230902741,30.61381476,152.5,152.39,10.59650149]
[1727230902742,6.5587,152.47,152.39,10.59650149]
[1727230907146,6.5578,152.49,152.41,10.59650149]
[1727230907357,6.5578,152.49,152.43,16.3505]
[1727230907554,6.5578,152.49,152.44,1.31181557]
[1727230907965,20.2492116,152.52,152.43,16.3505]
[1727230908275,6.559,152.47,152.43,16.3505]
[1727230909546,36.6411116,152.52,152.43,16.3505]
[1727230909741,6.5582,152.48,152.43,16.3505]
[1727230912864,6.5578,152.49,152.43,16.3505]
[1727230915472,6.5583,152.48,152.43,16.3505]
[1727230918355,6.5588,152.47,152.43,16.3505]
[1727230918671,23.776884,152.49,152.39,16.3505]
[1727230918860,6.5596,152.45,152.39,16.3505]
[1727230919549,6.5599,152.44,152.39,16.3505]
[1727230920170,6.5595,152.45,152.39,16.3505]
[1727230921267,6.5591,152.46,152.4,1.31209808]
[1727230922080,6.5591,152.46,152.39,26.94700149]
[1727230922255,6.5587,152.47,152.39,26.94700149]
[1727230923375,31.5446,152.5,152.39,16.3505]
[1727230923563,6.5595,152.45,152.39,16.3505]
[1727230929577,6.5591,152.46,152.39,16.3505]
[1727230929956,6.5587,152.47,152.39,26.94700149]
[1727230930157,43.776884,152.49,152.39,26.94700149]
[1727230930382,20.0,152.49,152.41,10.59650149]
[1727230930579,6.5579,152.49,152.42,1.3118421]
[1727230931057,6.5579,152.49,152.41,10.59650149]
[1727230934964,6.5574,152.5,152.41,10.59650149]
[1727230935172,0.2492116,152.52,152.45,10.59650149]
[1727230935373,0.2492116,152.52,152.46,1.31148477]
[1727230935584,0.2492116,152.52,152.48,16.372]
[1727230935758,6.8060116,152.52,152.48,16.372]
[1727230935961,0.2492116,152.52,152.44,36.372]
[1727230936157,0.2492116,152.52,152.45,1.31166922]
[1727230936794,24.0260956,152.52,152.45,1.31166922]
[1727230937485,6.5573,152.51,152.45,1.31166922]
[1727230937662,6.5573,152.51,152.44,36.372]
[1727230938015,6.8057116,152.52,152.44,36.372]
[1727230938212,0.2492116,152.52,152.46,10.59650149]
[1727230938389,0.2492116,152.52,152.44,36.372]
[1727230938390,0.2492116,152.52,152.47,10.59650149]
[1727230938888,0.2492116,152.52,152.45,10.59650149]
[1727230939084,0.2492116,152.52,152.44,36.372]
[1727230939294,6.5571,152.51,152.44,36.372]
[1727230939672,6.5571,152.51,152.45,1.31162787]
[1727230940371,6.5571,152.51,152.44,36.372]
[1727230942488,0.2492116,152.52,152.44,46.96850149]
[1727230942793,0.2492116,152.52,152.46,10.59650149]
[1727230944885,0.2492116,152.52,152.48,30.59650149]
[1727230945194,0.2492116,152.52,152.49,11.90766642]
[1727230945399,0.2492116,152.52,152.5,34.28863155]
[1727230945688,0.2492116,152.52,152.51,11.90754054]
[1727230946875,0.2492116,152.52,152.51,31.90754648]
[1727230947075,0.2492116,152.52,152.51,55.68443048]
[1727230947274,0.2492116,152.57,152.56,0.65612]
[1727230948881,0.2492116,152.57,152.56,1.96666938]
[1727230949092,0.2492116,152.57,152.56,0.65612]
[1727230953292,0.2492116,152.57,152.56,1.96672002]
[1727230954289,0.2492116,152.57,152.56,12.56322151]
[1727230954493,0.2492116,152.57,152.56,32.56322151]
[1727230955074,0.2492116,152.57,152.56,38.85132151]
[1727230955396,0.2492116,152.57,152.56,62.62820551]
[1727230956290,0.2492116,152.57,152.56,61.31760549]
[1727230956701,0.2492116,152.57,152.56,26.94422]
[1727230956875,0.2492116,152.57,152.56,20.65612]
[1727230958209,0.2492116,152.57,152.56,0.65612]
[1727230965600,0.2492116,152.57,152.56,11.25262149]
[1727230965790,0.2492116,152.57,152.56,12.56311263]
[1727230965986,0.2492116,152.57,152.56,11.25262149]
[1727230966190,0.2492116,152.57,152.56,0.65612]
[1727230967986,0.2492116,152.57,152.56,11.25262149]
[1727230969388,0.2492116,152.57,152.56,55.02950549]
[1727230969695,0.2492116,152.57,152.56,56.33984808]
[1727230970605,0.2492116,152.57,152.56,55.02950549]
[1727230972099,0.2492116,152.61,152.6,10.59650149]
[1727230976716,0.2492116,152.61,152.6,10.59650149]
[1727230978220,0.2492116,152.61,152.57,30.59650149]
[1727230979310,0.2492116,152.61,152.56,0.65612]
[1727230979311,0.2492116,152.61,152.6,10.59650149]
[1727230981191,0.2492116,152.61,152.6,34.37338549]
[1727230981801,0.2492116,152.61,152.6,35.68343299]
[1727230982622,0.2492116,152.61,152.6,35.68343391]
[1727230983502,0.2492116,152.61,152.6,55.68343391]
[1727230984321,0.1085323,152.64,152.61,43.776884]
[1727230984503,0.1085323,152.64,152.63,34.37338549]
[1727230984700,0.1085323,152.64,152.63,10.59650149]
[1727230985099,0.1085323,152.64,152.63,11.9063496]
[1727230985291,0.1085323,152.64,152.63,55.6832336]
[1727230986005,0.0729187,152.68,152.64,43.776884]
[1727230986201,0.0729187,152.68,152.67,34.37338549]
[1727230987102,0.0729187,152.68,152.67,54.37338549]
[1727230988107,0.2492116,152.7,152.69,30.59650149]
[1727230988297,0.2492116,152.7,152.69,55.6826832]
[1727230991506,0.2492116,152.7,152.69,54.37338549]
[1727230992017,0.2492116,152.7,152.69,34.37338549]
[1727230992496,0.2492116,152.7,152.69,10.59650149]
[1727230992691,0.2492116,152.7,152.63,30.56264082]
[1727230992692,0.2492116,152.7,152.67,10.59650149]
[1727230992894,0.2492116,152.7,152.69,10.59650149]
[1727230995122,0.2492116,152.7,152.67,10.59650149]
[1727230995429,0.2492116,152.7,152.68,10.59650149]
[1727230996501,0.2492116,152.7,152.67,10.59650149]
[1727230996703,0.2492116,152.7,152.59,15.1195]
[1727230996907,0.2492116,152.7,152.66,10.59650149]
[1727230999925,0.2492116,152.7,152.6,65.65831007]
[1727230999926,0.2492116,152.7,152.67,11.90621973]
[1727231000230,0.2492116,152.7,152.68,1.30971719]
[1727231001027,0.2492116,152.7,152.6,65.65831007]
[1727231001028,0.2492116,152.7,152.66,10.59650149]
[1727231001418,0.2492116,152.7,152.6,65.65831007]
[1727231001627,6.7980116,152.7,152.63,10.59650149]
[1727231001806,22.7684,152.69,152.62,10.59650149]
[1727231002123,22.7684,152.69,152.61,10.59650149]
[1727231002124,6.0723,152.68,152.61,10.59650149]
[1727231009322,12.622,152.68,152.61,10.59650149]
[1727231009629,6.5501,152.67,152.6,20.0]
[1727231009839,6.5501,152.67,152.56,7.49230002]
[1727231009840,15.866,152.66,152.56,7.49230002]
[1727231010049,15.866,152.66,152.58,10.59650149]
[1727231010722,22.4166,152.66,152.58,10.59650149]
[1727231010922,22.4166,152.66,152.57,10.59650149]
[1727231011128,15.866,152.66,152.58,20.0]
[1727231012041,15.866,152.66,152.59,10.59650149]
[1727231012416,15.866,152.66,152.6,1.31027645]
[1727231013323,15.866,152.66,152.59,10.59650149]
[1727231013530,15.866,152.66,152.6,10.59650149]
[1727231015732,22.4168,152.66,152.57,10.59650149]
[1727231015915,6.3336,152.65,152.57,10.59650149]
[1727231017123,6.3336,152.65,152.6,10.59650149]
[1727231017335,6.3336,152.65,152.61,1.310309]
[1727231018414,6.3336,152.65,152.6,10.59650149]
[1727231019429,6.3336,152.65,152.61,1.31032771]
[1727231020228,6.3336,152.65,152.58,30.59650149]
[1727231021046,6.3336,152.65,152.58,20.0]
[1727231021536,6.3336,152.65,152.56,20.65612]
[1727231021537,15.866,152.64,152.56,20.65612]
[1727231022446,22.4177,152.64,152.56,20.65612]
[1727231023318,22.4177,152.64,152.57,1.31059959]
[1727231025043,22.4177,152.64,152.56,20.65612]
[1727231026739,22.4177,152.64,152.56,0.65612]
[1727231027040,6.5518,152.63,152.56,0.65612]
[1727231027243,12.6492,152.62,152.56,0.65612]
[1727231027451,15.228,152.61,152.56,0.65612]
[1727231030950,15.228,152.61,152.57,11.90719565]
[1727231031254,15.228,152.61,152.57,10.59650149]
[1727231034753,15.228,152.61,152.58,1.31052862]
[1727231035549,15.228,152.61,152.57,10.59650149]
[1727231035931,15.228,152.61,152.56,0.65612]
[1727231039249,15.228,152.61,152.57,1.31067953]
[1727231039627,15.228,152.61,152.56,0.65612]
[1727231040636,15.228,152.61,152.57,10.59650149]
[1727231041342,15.228,152.61,152.58,1.3105849]
[1727231041857,15.228,152.61,152.57,10.59650149]
[1727231042038,15.228,152.61,152.56,0.65612]
[1727231042955,21.7808,152.61,152.56,0.65612]
[1727231044032,6.5531,152.6,152.56,0.65612]
[1727231044634,21.7807,152.61,152.56,0.65612]
[1727231047254,6.5531,152.6,152.56,0.65612]
[1727231047745,15.228,152.61,152.56,0.65612]
[1727231048055,21.7807,152.61,152.56,0.65612]
[1727231049461,6.5531,152.6,152.56,0.65612]
[1727231049672,6.5543,152.57,152.56,0.65612]
[1727231049958,22.2539,152.57,152.56,0.65612]
[1727231050662,30.60320478,152.64,152.5,0.2492116]
[1727231050663,6.5565,152.52,152.5,0.2492116]
[1727231050864,15.6996,152.51,152.5,0.2492116]
[1727231051163,22.0794,152.51,152.5,0.2492116]
[1727231054951,28.6363,152.51,152.5,0.2492116]
[1727231059763,52.413184,152.51,152.5,0.2492116]
[1727231060059,65.856284,152.51,152.45,0.3221303]
[1727231060274,6.5578,152.49,152.45,0.3221303]
[1727231061146,45.856284,152.51,152.45,0.3221303]
[1727231061147,23.776884,152.5,152.45,0.3221303]
[1727231061349,6.5587,152.47,152.45,0.3221303]
[1727231064461,26.5578,152.49,152.45,0.3221303]
[1727231070578,26.5574,152.5,152.45,0.3221303]
[1727231070788,6.5579,152.49,152.45,0.3221303]
[1727231074079,6.0579,152.49,152.45,0.3221303]
[1727231080576,6.5588,152.47,152.45,0.3221303]
[1727231080882,23.776884,152.49,152.45,0.3221303]
[1727231080883,20.0,152.48,152.45,0.3221303]
[1727231081087,6.5574,152.5,152.45,0.3221303]
[1727231081385,6.5579,152.49,152.45,0.3221303]
[1727231082268,30.334284,152.5,152.45,0.3221303]
[1727231085261,6.5574,152.5,152.45,0.3221303]
[1727231088679,20.0,152.5,152.45,0.3221303]
[1727231088878,6.5578,152.49,152.45,0.3221303]
[1727231094088,20.0,152.5,152.45,0.3221303]
[1727231094394,6.5578,152.49,152.45,0.3221303]
[1727231096090,26.5574,152.5,152.45,0.3221303]
[1727231099389,20.0,152.51,152.45,0.3221303]
[1727231099586,20.0,152.5,152.45,0.3221303]
[1727231099790,20.0,152.52,152.45,0.3221303]
[1727231100095,6.5574,152.5,152.45,0.3221303]
[1727231100297,6.5578,152.49,152.45,0.3221303]
[1727231101799,6.5574,152.5,152.45,0.3221303]
[1727231107184,6.558,152.49,152.45,0.3221303]
[1727231111103,6.5583,152.48,152.45,0.3221303]
[1727231111789,6.5586,152.47,152.45,0.3221303]
[1727231112185,20.0,152.52,152.45,0.3221303]
[1727231112186,6.559,152.46,152.45,0.3221303]
[1727231112602,6.5586,152.48,152.45,0.3221303]
[1727231113713,6.5587,152.47,152.45,0.3221303]
[1727231114306,6.5583,152.48,152.45,0.3221303]
[1727231114609,6.559,152.46,152.45,0.3221303]
[1727231114796,6.5587,152.47,152.45,0.3221303]
[1727231115395,6.5588,152.47,152.45,0.3221303]
[1727231115705,6.83934658,152.51,152.45,0.3221303]
[1727231116005,6.5573,152.5,152.45,0.3221303]
[1727231116613,6.83717911,152.54,152.45,0.3221303]
[1727231116790,6.5587,152.47,152.45,0.3221303]
[1727231117114,6.559,152.46,152.45,0.3221303]
[1727231118333,30.335884,152.46,152.45,0.3221303]
[1727231123613,50.335884,152.46,152.45,0.3221303]
[1727231123816,6.5607,152.43,152.4,0.3577439]
[1727231124334,43.776884,152.45,152.36,15.7981303]
[1727231124335,6.5608,152.42,152.36,15.6558742]
[1727231124810,6.5608,152.42,152.36,16.96838222]
[1727231125507,6.5608,152.42,152.36,15.6558742]
[1727231128393,6.5608,152.42,152.36,16.96837438]
[1727231128897,6.5608,152.42,152.36,15.6558742]
[1727231129400,6.5608,152.42,152.36,16.96837311]
[1727231130631,43.776884,152.45,152.37,11.90638482]
[1727231130800,26.5596,152.45,152.38,10.59388635]
[1727231131810,20.0,152.45,152.39,1.31231098]
[1727231132010,6.83405755,152.49,152.39,11.90619733]
[1727231132193,23.1748,152.5,152.39,11.90619733]
[1727231132194,6.5591,152.46,152.39,11.90619733]
[1727231133106,6.5591,152.46,152.37,30.59388635]
[1727231135714,19.71,152.49,152.37,30.59388635]
[1727231136026,6.5605,152.43,152.36,15.6558742]
[1727231136207,6.5626,152.38,152.36,0.1798742]
[1727231136528,30.339784,152.37,152.36,0.1798742]
[1727231139330,50.339784,152.37,152.36,0.1798742]
[1727231139835,50.339784,152.37,152.31,0.3577439]
[1727231139836,43.776884,152.36,152.31,0.3577439]
[1727231140021,23.776884,152.33,152.31,0.3577439]
[1727231140529,6.5638,152.35,152.31,0.3577439]
[1727231141210,30.341184,152.34,152.31,0.3577439]
[1727231142228,20.0,152.35,152.31,0.3577439]
[1727231142722,26.5638,152.35,152.31,0.3577439]
[1727231143611,23.776884,152.34,152.31,0.3577439]
[1727231144531,45.688184,152.34,152.31,0.3577439]
[1727231145328,39.123884,152.34,152.31,0.3577439]
[1727231145628,6.565,152.33,152.31,0.3577439]
[1727231155329,50.341984,152.32,152.31,0.3577439]
[1727231156814,30.341984,152.32,152.31,0.3577439]
[1727231157338,50.341984,152.32,152.31,0.3577439]
[1727231161319,6.5647,152.33,152.31,0.3577439]
[1727231161525,21.9113,152.34,152.31,0.3577439]
[1727231161838,43.776884,152.33,152.31,0.3577439]
[1727231162017,50.341584,152.33,152.31,0.3577439]
[1727231162216,43.776884,152.33,152.31,0.3577439]
[1727231162745,23.776884,152.33,152.31,0.3577439]
[1727231163942,30.341584,152.33,152.31,0.3577439]
[1727231165035,21.9113,152.34,152.31,0.3577439]
[1727231166716,30.341584,152.33,152.31,0.3577439]
[1727231169430,6.5647,152.33,152.31,0.3577439]
[1727231174126,15.347,152.34,152.31,0.3577439]
[1727231174444,21.9113,152.34,152.31,0.3577439]
[1727231180121,23.776884,152.33,152.31,0.3577439]
[1727231180322,30.341484,152.33,152.31,0.3577439]
[1727231182151,6.5651,152.32,152.31,0.3577439]
[1727231182329,30.341984,152.32,152.31,0.3577439]
[1727231189753,6.83630597,152.34,152.31,0.3577439]
[1727231189960,16.4939,152.39,152.31,0.3577439]
[1727231190143,6.5641,152.35,152.31,0.3577439]
[1727231190450,43.03811738,152.39,152.31,0.3577439]
[1727231190626,6.5647,152.33,152.31,0.3577439]
[1727231191249,23.776884,152.32,152.31,0.3577439]
[1727231191454,30.341984,152.32,152.31,0.3577439]
[1727231194139,30.341984,152.32,152.26,0.3221303]
[1727231194140,43.776884,152.32,152.26,0.3221303]
[1727231194335,23.776884,152.28,152.26,0.3221303]
[1727231194550,30.343884,152.28,152.26,0.3221303]
[1727231194950,30.344084,152.27,152.26,0.3221303]
[1727231195884,23.776884,152.27,152.26,0.3221303]
[1727231196360,6.5663,152.3,152.26,0.3221303]
[1727231196562,20.0,152.33,152.26,0.3221303]
[1727231196859,6.5651,152.32,152.27,6.5669]
[1727231197037,6.5646,152.34,152.26,10.91601665]
[1727231198363,6.5646,152.34,152.29,6.5663]
[1727231198670,6.2206,152.36,152.26,10.91601665]
[1727231198875,30.341584,152.33,152.28,6.5668]
[1727231200861,30.341584,152.33,152.26,0.3221303]
[1727231200862,6.5655,152.32,152.26,6.8894303]
[1727231201060,23.776884,152.34,152.26,6.8894303]
[1727231201274,23.776884,152.3,152.26,6.8894303]
[1727231203871,30.342884,152.3,152.26,0.3221303]
[1727231206897,6.5672,152.27,152.26,0.3221303]
[1727231207194,23.776884,152.3,152.26,0.3221303]
[1727231207689,6.5664,152.29,152.26,0.3221303]
[1727231213395,23.776884,152.31,152.27,6.5671]
[1727231214972,23.776884,152.31,152.26,0.3221303]
[1727231215176,30.342584,152.31,152.26,6.8897303]
[1727231216281,6.566,152.3,152.26,0.3221303]
[1727231216484,23.776884,152.29,152.26,0.3221303]
[1727231221613,23.776884,152.29,152.26,0.3221303]
[1727231223278,30.343284,152.29,152.26,0.3221303]
[1727231227518,23.776884,152.29,152.26,0.3221303]
[1727231227807,30.343284,152.29,152.26,0.3221303]
[1727231232603,23.776884,152.29,152.26,0.3221303]
[1727231232795,23.776884,152.27,152.26,0.3221303]
[1727231234419,30.344084,152.27,152.26,0.3221303]
[1727231249234,50.344084,152.27,152.26,0.3221303]
[1727231269226,30.344084,152.27,152.26,0.3221303]
[1727231276446,23.776884,152.27,152.26,0.3221303]
[1727231276643,30.344084,152.27,152.26,0.3221303]
[1727231277036,50.344084,152.27,152.26,0.3221303]
[1727231277553,20.0,152.26,152.22,0.3577439]
[1727231277751,43.776884,152.27,152.22,0.3577439]
[1727231277752,30.345884,152.23,152.22,0.3577439]
[1727231306620,30.345884,152.23,152.19,6.5706]
[1727231306621,23.776884,152.22,152.21,0.3780992]
[1727231308789,30.346284,152.22,152.21,0.3780992]
[1727231317307,70.056284,152.22,152.21,0.3780992]
[1727231317594,30.348384,152.17,152.16,0.3354493]
[1727231318887,70.058384,152.17,152.16,0.3354493]
[1727231319187,85.918284,152.17,152.16,0.3354493]
[1727231319701,66.208284,152.17,152.16,0.3354493]
[1727231327901,20.0,152.17,152.16,0.3354493]
[1727231329390,43.776884,152.17,152.16,0.3354493]
[1727231329692,50.348384,152.17,152.16,0.3354493]
[1727231335515,23.776884,152.17,152.16,0.3354493]
[1727231341919,6.80707182,152.2,152.16,0.3354493]
[1727231342134,6.5699,152.21,152.16,6.9070493]
[1727231343800,23.776884,152.2,152.16,6.9070493]
[1727231345916,23.776884,152.2,152.17,6.5715]
[1727231346329,23.776884,152.21,152.17,6.5715]
[1727231357942,23.776884,152.21,152.16,0.3354493]
[1727231358154,23.776884,152.17,152.16,0.3354493]
[1727231358448,23.776884,152.19,152.16,0.3354493]
[1727231361135,30.347684,152.19,152.16,0.3354493]
[1727231361369,6.5713,152.18,152.16,0.3354493]
[1727231361658,50.348384,152.17,152.16,0.3354493]
[1727231366341,43.776884,152.17,152.16,0.3354493]
[1727231366977,50.348384,152.17,152.16,0.3354493]
[1727231367659,70.108384,152.17,152.16,0.3354493]
[1727231367852,50.348384,152.17,152.16,0.3354493]
[1727231371055,19.76,152.21,152.16,0.3354493]
[1727231371271,6.80886171,152.22,152.16,0.3354493]
[1727231371868,6.5708,152.19,152.16,0.3354493]
[1727231372452,6.5713,152.18,152.16,0.3354493]
[1727231373362,26.56886171,152.22,152.16,0.3354493]
[1727231373573,6.5715,152.17,152.16,0.3354493]
[1727231373775,30.348384,152.17,152.16,0.3354493]
[1727231377681,50.348384,152.17,152.16,0.3354493]
[1727231388404,70.108384,152.17,152.16,0.3354493]
[1727231388973,76.92338404,152.17,152.16,0.3354493]
[1727231394495,57.16338404,152.17,152.16,0.3354493]
[1727231395174,50.348384,152.17,152.16,0.3354493]
[1727231405307,30.350184,152.13,152.12,0.3576362]
[1727231405624,50.350184,152.13,152.12,0.3576362]
[1727231406692,30.350184,152.13,152.12,0.3576362]
[1727231407293,20.0,152.16,152.12,0.3576362]
[1727231407503,6.5729,152.14,152.12,0.3576362]
[1727231408604,30.350184,152.13,152.12,0.3576362]
[1727231415194,50.350184,152.13,152.12,0.3576362]
[1727231419116,39.25826205,152.23,152.12,0.3576362]
[1727231419301,36.1858,152.2,152.12,0.3576362]
[1727231419507,6.5724,152.15,152.12,0.3576362]
[1727231419807,36.1858,152.2,152.12,0.3576362]
[1727231420123,19.76,152.2,152.12,0.3576362]
[1727231420316,6.5733,152.13,152.12,0.3576362]
[1727231421201,30.350184,152.13,152.12,0.3576362]
[1727231433651,50.350184,152.13,152.12,0.3576362]
[1727231437228,30.350184,152.13,152.12,0.3576362]